[Event "2026 European Womens Championship"]
[Site "Batumi, GE"]
[Date "2026.06.05"]
[Round "11"]
[White "Kedelidze, Aneta"]
[Black "Esadze, Tamari"]
[Result "0-1"]
[Board "72"]
[TimeControl "5400+30"]
[WhiteFideId "13626191"]
[BlackFideId "13611186"]
[WhiteElo "1676"]
[BlackElo "1974"]
[WhiteClock "0:06:26"]
[BlackClock "0:28:13"]
[Variant "Standard"]

1. d4 {[%clk 1:30:57]}  d5 {[%clk 1:30:56]} 2. c4 {[%clk 1:31:20]}  e6 {[%clk 1:31:23]} 3. cxd5 {[%clk 1:31:42]}  exd5 {[%clk 1:31:50]}
4. Nc3 {[%clk 1:32:09]}  Nf6 {[%clk 1:32:13]} 5. Bg5 {[%clk 1:32:32]}  Be7 {[%clk 1:32:30]} 6. e3 {[%clk 1:32:53]}  O-O {[%clk 1:32:54]}
7. Bd3 {[%clk 1:33:19]}  Nbd7 {[%clk 1:32:44]} 8. Nge2 {[%clk 1:32:31]}  h6 {[%clk 1:31:34]} 9. Bh4 {[%clk 1:32:56]}  c6 {[%clk 1:30:51]}
10. O-O {[%clk 1:33:10]}  Re8 {[%clk 1:30:40]} 11. Rb1 {[%clk 1:32:48]}  Ne4 {[%clk 1:26:30]} 12. Bxe7 {[%clk 1:32:28]}  Qxe7 {[%clk 1:26:54]}
13. Qc2 {[%clk 1:30:30]}  Ndf6 {[%clk 1:21:27]} 14. b4 {[%clk 1:30:37]}  Bf5 {[%clk 1:17:48]} 15. Ng3 {[%clk 1:27:02]}  Bg6 {[%clk 1:15:27]}
16. Ngxe4 {[%clk 1:25:24]}  dxe4 {[%clk 1:15:04]} 17. Bc4 {[%clk 1:25:30]}  Qd6 {[%clk 1:11:15]} 18. h3 {[%clk 1:24:57]}  Rac8 {[%clk 1:09:02]}
19. Qb3 {[%clk 1:23:50]}  a6 {[%clk 1:04:22]} 20. Rfd1 {[%clk 1:20:37]}  Bh5 {[%clk 0:58:31]} 21. Rdc1 {[%clk 1:14:03]}  Nd7 {[%clk 0:55:26]}
22. a4 {[%clk 1:12:20]}  Qg6 {[%clk 0:52:35]} 23. Kh1 {[%clk 1:09:26]}  Qf5 {[%clk 0:46:28]} 24. Kg1 {[%clk 1:05:13]}  Qg5 {[%clk 0:43:10]}
25. Kh2 {[%clk 0:58:05]}  Nf6 {[%clk 0:38:56]} 26. Rf1 {[%clk 0:57:30]}  Qh4 {[%clk 0:35:09]} 27. Be2 {[%clk 0:56:21]}  Re6 {[%clk 0:31:07]}
28. Qd1 {[%clk 0:53:09]}  Bxe2 {[%clk 0:29:04]} 29. Qxe2 {[%clk 0:48:57]}  Qg5 {[%clk 0:28:55]} 30. Rfc1 {[%clk 0:47:46]}  h5 {[%clk 0:24:58]}
31. b5 {[%clk 0:45:02]}  axb5 {[%clk 0:25:06]} 32. axb5 {[%clk 0:44:22]}  c5 {[%clk 0:19:12]} 33. Na4 {[%clk 0:42:19]}  Nd7 {[%clk 0:19:28]}
34. Nxc5 {[%clk 0:40:07]}  Nxc5 {[%clk 0:19:35]} 35. Rxc5 {[%clk 0:40:06]}  Rxc5 {[%clk 0:20:01]} 36. dxc5 {[%clk 0:40:27]}  Rg6 {[%clk 0:18:12]}
37. Qf1 {[%clk 0:30:42]}  Qxc5 {[%clk 0:18:37]} 38. Rc1 {[%clk 0:29:40]}  Qe5+ {[%clk 0:18:46]} 39. Kh1 {[%clk 0:29:51]}  Kh7 {[%clk 0:17:53]}
40. Qc4 {[%clk 0:29:16]}  Qf5 {[%clk 0:14:07]} 41. Qe2 {[%clk 0:23:22]}  Rg5 {[%clk 0:10:06]} 42. Rb1 {[%clk 0:23:05]}  Qg6 {[%clk 0:09:50]}
43. Qf1 {[%clk 0:21:33]}  b6 {[%clk 0:09:45]} 44. Rc1 {[%clk 0:20:47]}  Qf5 {[%clk 0:10:03]} 45. Rb1 {[%clk 0:21:04]}  Qc5 {[%clk 0:05:08]}
46. Qe2 {[%clk 0:20:24]}  Rd5 {[%clk 0:05:08]} 47. Qa2 {[%clk 0:17:06]}  Rf5 {[%clk 0:01:16]} 48. Kg1 {[%clk 0:15:22]}  Qc3 {[%clk 0:28:58]}
49. Qe2 {[%clk 0:45:02]}  g6 {[%clk 0:26:10]} 50. Qd1 {[%clk 0:27:50]}  Qc4 {[%clk 0:25:26]} 51. Qf1 {[%clk 0:28:06]}  Qxf1+ {[%clk 0:24:36]}
52. Kxf1 {[%clk 0:28:31]}  Rc5 {[%clk 0:24:11]} 53. Rb2 {[%clk 0:27:16]}  Kg7 {[%clk 0:24:29]} 54. Ke2 {[%clk 0:27:39]}  Kf6 {[%clk 0:24:03]}
55. f3 {[%clk 0:26:00]}  Ke5 {[%clk 0:24:21]} 56. fxe4 {[%clk 0:25:04]}  Kxe4 {[%clk 0:24:02]} 57. Rb4+ {[%clk 0:25:28]}  Kd5 {[%clk 0:23:57]}
58. e4+ {[%clk 0:16:57]}  Kd6 {[%clk 0:21:55]} 59. Rd4+ {[%clk 0:11:17]}  Ke5 {[%clk 0:21:31]} 60. Rb4 {[%clk 0:11:32]}  Rc2+ {[%clk 0:20:36]}
61. Kf3 {[%clk 0:11:49]}  Rd2 {[%clk 0:20:06]} 62. g3 {[%clk 0:09:24]}  Rd3+ {[%clk 0:20:25]} 63. Kf2 {[%clk 0:09:45]}  Rd4 {[%clk 0:20:02]}
64. Rb3 {[%clk 0:02:21]}  Rxe4 {[%clk 0:20:22]} 65. Rc3 {[%clk 0:02:45]}  Rb4 {[%clk 0:20:15]} 66. Rc7 {[%clk 0:03:00]}  f6 {[%clk 0:19:23]}
67. Rg7 {[%clk 0:02:50]}  Kf5 {[%clk 0:19:49]} 68. g4+ {[%clk 0:03:13]}  hxg4 {[%clk 0:20:16]} 69. hxg4+ {[%clk 0:03:35]}  Kg5 {[%clk 0:20:36]}
70. Rd7 {[%clk 0:03:03]}  Rxb5 {[%clk 0:21:00]} 71. Rd4 {[%clk 0:03:26]}  Rb3 {[%clk 0:21:16]} 72. Ke2 {[%clk 0:03:33]}  Rg3 {[%clk 0:21:01]}
73. Rb4 {[%clk 0:03:56]}  Rxg4 {[%clk 0:21:27]} 74. Rxb6 {[%clk 0:04:21]}  Rg3 {[%clk 0:21:48]} 75. Kf2 {[%clk 0:04:45]}  Ra3 {[%clk 0:22:15]}
76. Kg2 {[%clk 0:04:34]}  f5 {[%clk 0:22:02]} 77. Rc6 {[%clk 0:04:42]}  Ra8 {[%clk 0:21:23]} 78. Kg3 {[%clk 0:04:56]}  Ra4 {[%clk 0:21:32]}
79. Rb6 {[%clk 0:04:49]}  Rg4+ {[%clk 0:21:36]} 80. Kh3 {[%clk 0:05:13]}  Rh4+ {[%clk 0:21:57]} 81. Kg2 {[%clk 0:05:28]}  f4 {[%clk 0:22:09]}
82. Ra6 {[%clk 0:05:21]}  Rh6 {[%clk 0:22:26]} 83. Kf3 {[%clk 0:05:37]}  Rh3+ {[%clk 0:22:52]} 84. Kg2 {[%clk 0:06:00]}  Rg3+ {[%clk 0:23:12]}
85. Kh2 {[%clk 0:04:26]}  Kf5 {[%clk 0:23:39]} 86. Ra5+ {[%clk 0:04:36]}  Kg4 {[%clk 0:24:05]} 87. Rb5 {[%clk 0:04:32]}  g5 {[%clk 0:24:31]}
88. Rb4 {[%clk 0:04:56]}  Rc3 {[%clk 0:24:50]} 89. Rb5 {[%clk 0:05:13]}  Rc2+ {[%clk 0:25:15]} 90. Kg1 {[%clk 0:05:38]}  f3 {[%clk 0:25:41]}
91. Kf1 {[%clk 0:05:41]}  Kf4 {[%clk 0:26:06]} 92. Kg1 {[%clk 0:05:26]}  g4 {[%clk 0:26:32]} 93. Rb4+ {[%clk 0:05:33]}  Kg3 {[%clk 0:26:57]}
94. Rb1 {[%clk 0:05:56]}  Rg2+ {[%clk 0:27:21]} 95. Kf1 {[%clk 0:06:04]}  Rh2 {[%clk 0:27:47]} 96. Kg1 {[%clk 0:06:26]}  f2+ {[%clk 0:28:13]} 0-1

[Event "2026 European Womens Championship"]
[Site "Batumi, GE"]
[Date "2026.06.05"]
[Round "11"]
[White "Rodshtein, Tereza"]
[Black "Manukyan, Tamara"]
[Result "1-0"]
[Board "73"]
[TimeControl "5400+30"]
[WhiteFideId "325449"]
[BlackFideId "13321307"]
[WhiteElo "2218"]
[BlackElo "1707"]
[WhiteTitle "WGM"]
[WhiteClock "0:41:55"]
[BlackClock "0:30:58"]
[Variant "Standard"]

1. e4 {[%clk 1:30:57]}  d5 {[%clk 1:30:54]} 2. exd5 {[%clk 1:31:21]}  Nf6 {[%clk 1:31:23]} 3. d4 {[%clk 1:31:38]}  Nxd5 {[%clk 1:31:51]}
4. Nf3 {[%clk 1:31:40]}  Bf5 {[%clk 1:32:15]} 5. Bd3 {[%clk 1:31:59]}  Bxd3 {[%clk 1:32:34]} 6. Qxd3 {[%clk 1:32:22]}  e6 {[%clk 1:33:00]}
7. O-O {[%clk 1:31:51]}  Be7 {[%clk 1:33:17]} 8. c4 {[%clk 1:31:27]}  Nf6 {[%clk 1:33:06]} 9. Nc3 {[%clk 1:31:41]}  O-O {[%clk 1:33:27]}
10. Bf4 {[%clk 1:30:45]}  Nbd7 {[%clk 1:28:24]} 11. Rad1 {[%clk 1:28:21]}  a6 {[%clk 1:23:03]} 12. Rfe1 {[%clk 1:26:26]}  Nb6 {[%clk 1:18:54]}
13. h3 {[%clk 1:24:37]}  h6 {[%clk 1:17:10]} 14. Ne5 {[%clk 1:21:12]}  Nbd7 {[%clk 1:11:45]} 15. Qf3 {[%clk 1:16:52]}  Qc8 {[%clk 1:03:03]}
16. Nxd7 {[%clk 1:12:50]}  Nxd7 {[%clk 1:03:23]} 17. Qg3 {[%clk 1:09:04]}  Kh8 {[%clk 0:58:53]} 18. Bxc7 {[%clk 1:06:15]}  Nf6 {[%clk 0:54:00]}
19. c5 {[%clk 1:00:10]}  Rg8 {[%clk 0:50:41]} 20. Be5 {[%clk 0:58:21]}  Qc6 {[%clk 0:49:40]} 21. Qf4 {[%clk 0:56:58]}  Kh7 {[%clk 0:47:11]}
22. Bxf6 {[%clk 0:55:01]}  gxf6 {[%clk 0:46:57]} 23. d5 {[%clk 0:52:34]}  Qxc5 {[%clk 0:45:49]} 24. Ne4 {[%clk 0:51:59]}  Qb5 {[%clk 0:43:18]}
25. d6 {[%clk 0:48:25]}  Bd8 {[%clk 0:37:26]} 26. Nxf6+ {[%clk 0:46:50]}  Bxf6 {[%clk 0:37:49]} 27. Qxf6 {[%clk 0:47:16]}  Qd7 {[%clk 0:36:21]}
28. g3 {[%clk 0:46:16]}  Rg6 {[%clk 0:34:39]} 29. Qe5 {[%clk 0:45:02]}  Rc8 {[%clk 0:33:53]} 30. Rc1 {[%clk 0:42:41]}  Rg5 {[%clk 0:31:03]}
31. Qe4+ {[%clk 0:41:56]}  Kg8 {[%clk 0:30:30]} 32. Rc4 {[%clk 0:41:25]}  Rcc5 {[%clk 0:30:30]} 33. Rxc5 {[%clk 0:41:55]}  Qc8 {[%clk 0:30:58]} 1-0

[Event "2026 European Womens Championship"]
[Site "Batumi, GE"]
[Date "2026.06.05"]
[Round "11"]
[White "Giorgadze, Mariam Ere"]
[Black "Xing, Lida"]
[Result "1-0"]
[Board "74"]
[TimeControl "5400+30"]
[WhiteFideId "13636839"]
[BlackFideId "13326171"]
[WhiteElo "1909"]
[BlackElo "1598"]
[WhiteClock "0:34:27"]
[BlackClock "0:19:59"]
[Variant "Standard"]

1. e4 {[%clk 1:30:59]}  c5 {[%clk 1:30:53]} 2. Nf3 {[%clk 1:31:25]}  d6 {[%clk 1:31:19]} 3. d4 {[%clk 1:31:51]}  cxd4 {[%clk 1:31:45]}
4. Nxd4 {[%clk 1:32:18]}  Nf6 {[%clk 1:32:07]} 5. Nc3 {[%clk 1:32:44]}  g6 {[%clk 1:32:32]} 6. Be3 {[%clk 1:32:45]}  Bg7 {[%clk 1:32:44]}
7. f3 {[%clk 1:31:53]}  O-O {[%clk 1:33:06]} 8. Bc4 {[%clk 1:32:01]}  Nc6 {[%clk 1:33:16]} 9. Qd2 {[%clk 1:31:26]}  a6 {[%clk 1:28:31]}
10. O-O-O {[%clk 1:30:28]}  Nxd4 {[%clk 1:28:52]} 11. Bxd4 {[%clk 1:30:51]}  Qc7 {[%clk 1:25:26]} 12. Bb3 {[%clk 1:30:23]}  e5 {[%clk 1:16:59]}
13. Be3 {[%clk 1:30:14]}  Rd8 {[%clk 1:09:20]} 14. Qf2 {[%clk 1:26:00]}  Qe7 {[%clk 1:03:20]} 15. Bb6 {[%clk 1:24:13]}  Re8 {[%clk 1:03:41]}
16. Qd2 {[%clk 1:22:23]}  Bf8 {[%clk 1:03:58]} 17. g4 {[%clk 1:18:58]}  Be6 {[%clk 1:04:04]} 18. Ba4 {[%clk 1:14:53]}  Nd7 {[%clk 1:04:14]}
19. Bc7 {[%clk 1:10:50]}  b5 {[%clk 1:00:11]} 20. Bb3 {[%clk 1:11:12]}  Qh4 {[%clk 0:59:34]} 21. Kb1 {[%clk 1:08:31]}  Nc5 {[%clk 0:59:32]}
22. Bxe6 {[%clk 1:07:09]}  Nxe6 {[%clk 0:58:34]} 23. Nd5 {[%clk 1:06:26]}  Rac8 {[%clk 0:58:03]} 24. Bb6 {[%clk 1:05:16]}  Kg7 {[%clk 0:49:27]}
25. Bf2 {[%clk 1:03:39]}  Qh3 {[%clk 0:47:41]} 26. Be3 {[%clk 0:52:16]}  Nc7 {[%clk 0:42:39]} 27. Nb6 {[%clk 0:46:16]}  Rcd8 {[%clk 0:42:04]}
28. Qe2 {[%clk 0:39:39]}  Qh4 {[%clk 0:41:38]} 29. Rhg1 {[%clk 0:39:04]}  Qe7 {[%clk 0:41:15]} 30. h4 {[%clk 0:38:27]}  h6 {[%clk 0:41:24]}
31. g5 {[%clk 0:36:16]}  h5 {[%clk 0:39:37]} 32. f4 {[%clk 0:36:25]}  Kg8 {[%clk 0:35:03]} 33. f5 {[%clk 0:35:25]}  Kh7 {[%clk 0:29:05]}
34. Rgf1 {[%clk 0:35:15]}  Rb8 {[%clk 0:20:43]} 35. Rf2 {[%clk 0:33:54]}  Qd8 {[%clk 0:20:08]} 36. fxg6+ {[%clk 0:34:48]}  fxg6 {[%clk 0:20:32]}
37. Rf7+ {[%clk 0:35:06]}  Bg7 {[%clk 0:20:51]} 38. Rd7 {[%clk 0:35:02]}  Rf8 {[%clk 0:20:19]} 39. Rxd8 {[%clk 0:35:18]}  Rbxd8 {[%clk 0:20:44]}
40. c4 {[%clk 0:34:27]}  Kg8 {[%clk 0:19:59]} 1-0

[Event "2026 European Womens Championship"]
[Site "Batumi, GE"]
[Date "2026.06.05"]
[Round "11"]
[White "Damaso Tacoronte, Carolina"]
[Black "Chanturia, Lika"]
[Result "0-1"]
[Board "75"]
[TimeControl "5400+30"]
[WhiteFideId "2292858"]
[BlackFideId "13618857"]
[WhiteElo "1890"]
[BlackElo "1649"]
[WhiteClock "0:02:34"]
[BlackClock "0:09:03"]
[Variant "Standard"]

1. d4 {[%clk 1:30:57]}  Nf6 {[%clk 1:30:56]} 2. c4 {[%clk 1:31:24]}  e6 {[%clk 1:31:23]} 3. Nc3 {[%clk 1:31:50]}  Bb4 {[%clk 1:31:41]}
4. a3 {[%clk 1:31:12]}  Bxc3+ {[%clk 1:31:42]} 5. bxc3 {[%clk 1:31:34]}  c5 {[%clk 1:30:04]} 6. Nf3 {[%clk 1:31:23]}  Nc6 {[%clk 1:27:08]}
7. d5 {[%clk 1:22:56]}  Na5 {[%clk 1:27:00]} 8. e3 {[%clk 1:14:40]}  d6 {[%clk 1:24:28]} 9. Bd3 {[%clk 1:11:56]}  b6 {[%clk 1:19:26]}
10. e4 {[%clk 1:07:19]}  Qc7 {[%clk 1:19:30]} 11. O-O {[%clk 1:05:10]}  Ba6 {[%clk 1:15:10]} 12. Qe2 {[%clk 1:04:41]}  O-O-O {[%clk 1:08:35]}
13. Bf4 {[%clk 1:03:06]}  e5 {[%clk 1:06:16]} 14. Bg5 {[%clk 1:01:04]}  Qd7 {[%clk 1:00:58]} 15. Nh4 {[%clk 0:55:39]}  h6 {[%clk 0:54:43]}
16. Bxf6 {[%clk 0:54:43]}  gxf6 {[%clk 0:55:08]} 17. a4 {[%clk 0:54:21]}  Rdg8 {[%clk 0:53:10]} 18. Nf5 {[%clk 0:54:08]}  h5 {[%clk 0:51:14]}
19. h3 {[%clk 0:50:04]}  Kc7 {[%clk 0:45:46]} 20. Kh2 {[%clk 0:45:30]}  Qe8 {[%clk 0:42:58]} 21. Rfe1 {[%clk 0:43:10]}  Bc8 {[%clk 0:39:33]}
22. Qb2 {[%clk 0:38:33]}  Bd7 {[%clk 0:37:40]} 23. Qc2 {[%clk 0:37:15]}  Rg5 {[%clk 0:36:52]} 24. Rg1 {[%clk 0:35:24]}  Bxf5 {[%clk 0:33:02]}
25. exf5 {[%clk 0:35:45]}  Rhg8 {[%clk 0:32:11]} 26. Rae1 {[%clk 0:34:05]}  Qc8 {[%clk 0:30:48]} 27. Qe2 {[%clk 0:25:37]}  Qd7 {[%clk 0:29:09]}
28. Qc2 {[%clk 0:24:42]}  Qc8 {[%clk 0:25:03]} 29. Qb1 {[%clk 0:22:24]}  Qd7 {[%clk 0:20:03]} 30. Qb5 {[%clk 0:20:07]}  Re8 {[%clk 0:17:44]}
31. Re3 {[%clk 0:17:11]}  Qxb5 {[%clk 0:17:37]} 32. cxb5 {[%clk 0:15:54]}  c4 {[%clk 0:16:01]} 33. Bc2 {[%clk 0:15:40]}  Kd7 {[%clk 0:15:50]}
34. Rge1 {[%clk 0:13:46]}  Rc8 {[%clk 0:14:01]} 35. Rg3 {[%clk 0:13:06]}  Rc5 {[%clk 0:12:22]} 36. Be4 {[%clk 0:11:54]}  Nb3 {[%clk 0:11:36]}
37. Rxg5 {[%clk 0:10:56]}  fxg5 {[%clk 0:11:59]} 38. Bf3 {[%clk 0:11:16]}  h4 {[%clk 0:10:54]} 39. Rd1 {[%clk 0:09:16]}  Kc7 {[%clk 0:05:34]}
40. f6 {[%clk 0:08:55]}  Kd8 {[%clk 0:05:05]} 41. Bh5 {[%clk 0:08:39]}  Rc7 {[%clk 0:05:26]} 42. g3 {[%clk 0:08:40]}  Nc5 {[%clk 0:04:35]}
43. gxh4 {[%clk 0:02:40]}  gxh4 {[%clk 0:03:28]} 44. Rg1 {[%clk 0:00:41]}  Kc8 {[%clk 0:22:31]} 45. Rg8+ {[%clk 0:22:16]}  Kb7 {[%clk 0:22:49]}
46. Bxf7 {[%clk 0:15:40]}  Rxf7 {[%clk 0:13:09]} 47. Rg7 {[%clk 0:15:54]}  Rc7 {[%clk 0:13:36]} 48. f7 {[%clk 0:05:36]}  Nd7 {[%clk 0:13:40]}
49. Rg8 {[%clk 0:04:53]}  Rc8 {[%clk 0:13:43]} 50. Re8 {[%clk 0:04:18]}  Kc7 {[%clk 0:11:05]} 51. Kg2 {[%clk 0:04:23]}  Rd8 {[%clk 0:09:31]}
52. Kf3 {[%clk 0:04:10]}  Nf8 {[%clk 0:09:36]} 53. Kg4 {[%clk 0:03:04]}  Kd7 {[%clk 0:09:12]} 54. Rxd8+ {[%clk 0:03:15]}  Kxd8 {[%clk 0:09:40]}
55. Kxh4 {[%clk 0:03:39]}  Ke7 {[%clk 0:09:49]} 56. Kg5 {[%clk 0:03:21]}  Kxf7 {[%clk 0:09:48]} 57. h4 {[%clk 0:03:21]}  Nh7+ {[%clk 0:09:59]}
58. Kf5 {[%clk 0:03:24]}  Nf6 {[%clk 0:10:18]} 59. f3 {[%clk 0:03:35]}  Nxd5 {[%clk 0:09:36]} 60. h5 {[%clk 0:02:34]}  Nxc3 {[%clk 0:09:03]} 0-1

[Event "2026 European Womens Championship"]
[Site "Batumi, GE"]
[Date "2026.06.05"]
[Round "11"]
[White "Asatiani, Natali"]
[Black "Saraci, Rinesa"]
[Result "1-0"]
[Board "76"]
[TimeControl "5400+30"]
[WhiteFideId "13636715"]
[BlackFideId "4701976"]
[WhiteElo "1603"]
[BlackElo "1754"]
[BlackTitle "WCM"]
[WhiteClock "0:08:33"]
[BlackClock "0:01:19"]
[Variant "Standard"]

1. e4 {[%clk 1:30:57]}  e5 {[%clk 1:30:54]} 2. Nf3 {[%clk 1:31:23]}  Nc6 {[%clk 1:31:18]} 3. d4 {[%clk 1:31:49]}  exd4 {[%clk 1:31:38]}
4. Bc4 {[%clk 1:32:16]}  Nf6 {[%clk 1:31:36]} 5. e5 {[%clk 1:32:41]}  d5 {[%clk 1:31:59]} 6. Bb5 {[%clk 1:33:07]}  Nd7 {[%clk 1:31:24]}
7. O-O {[%clk 1:14:36]}  Be7 {[%clk 1:26:28]} 8. Bxc6 {[%clk 1:09:12]}  bxc6 {[%clk 1:26:50]} 9. e6 {[%clk 1:03:53]}  fxe6 {[%clk 1:21:32]}
10. Nxd4 {[%clk 1:04:11]}  Ne5 {[%clk 1:21:25]} 11. Qh5+ {[%clk 0:58:46]}  Ng6 {[%clk 1:21:30]} 12. Nxc6 {[%clk 0:58:21]}  Qd6 {[%clk 1:20:49]}
13. Nxe7 {[%clk 0:58:19]}  Qxe7 {[%clk 1:20:42]} 14. c4 {[%clk 0:50:07]}  Ba6 {[%clk 1:10:30]} 15. Na3 {[%clk 0:43:52]}  O-O {[%clk 1:08:34]}
16. Bd2 {[%clk 0:37:34]}  Rf5 {[%clk 1:00:53]} 17. Qd1 {[%clk 0:34:50]}  Qh4 {[%clk 0:58:56]} 18. Qa4 {[%clk 0:30:06]}  Bxc4 {[%clk 0:56:59]}
19. Nxc4 {[%clk 0:29:57]}  Rh5 {[%clk 0:55:23]} 20. h3 {[%clk 0:29:38]}  Ne5 {[%clk 0:51:23]} 21. f4 {[%clk 0:19:56]}  Nxc4 {[%clk 0:49:58]}
22. Qc6 {[%clk 0:19:59]}  Rf8 {[%clk 0:44:22]} 23. Qxe6+ {[%clk 0:18:37]}  Kh8 {[%clk 0:44:24]} 24. Bc3 {[%clk 0:13:51]}  Qd8 {[%clk 0:40:03]}
25. Rad1 {[%clk 0:12:24]}  Rhf5 {[%clk 0:38:02]} 26. b3 {[%clk 0:10:04]}  Nb6 {[%clk 0:29:40]} 27. Qe3 {[%clk 0:08:23]}  R5f7 {[%clk 0:23:54]}
28. Rde1 {[%clk 0:07:25]}  Qd6 {[%clk 0:21:46]} 29. Bd4 {[%clk 0:06:20]}  Nd7 {[%clk 0:17:30]} 30. Bxa7 {[%clk 0:05:49]}  c5 {[%clk 0:17:27]}
31. b4 {[%clk 0:04:39]}  cxb4 {[%clk 0:16:39]} 32. Bd4 {[%clk 0:04:47]}  Qa6 {[%clk 0:14:29]} 33. Rf2 {[%clk 0:03:55]}  Kg8 {[%clk 0:12:49]}
34. g3 {[%clk 0:02:04]}  Nf6 {[%clk 0:12:17]} 35. Bxf6 {[%clk 0:02:21]}  Rxf6 {[%clk 0:11:45]} 36. Qb3 {[%clk 0:02:17]}  Qd6 {[%clk 0:10:16]}
37. Rd1 {[%clk 0:01:46]}  Rd8 {[%clk 0:10:14]} 38. Rd4 {[%clk 0:01:12]}  Qe6 {[%clk 0:06:30]} 39. Kg2 {[%clk 0:01:07]}  Rh6 {[%clk 0:03:31]}
40. h4 {[%clk 0:00:33]}  Qc6 {[%clk 0:00:42]} 41. Qxb4 {[%clk 0:26:51]}  Re6 {[%clk 0:29:21]} 42. Qb3 {[%clk 0:25:24]}  Red6 {[%clk 0:26:53]}
43. Rfd2 {[%clk 0:24:47]}  Qe8 {[%clk 0:26:06]} 44. Qf3 {[%clk 0:21:18]}  Qb5 {[%clk 0:25:35]} 45. a4 {[%clk 0:20:34]}  Qa5 {[%clk 0:25:29]}
46. Qd3 {[%clk 0:19:21]}  R8d7 {[%clk 0:24:21]} 47. Qb5 {[%clk 0:18:14]}  Qxb5 {[%clk 0:24:06]} 48. axb5 {[%clk 0:18:42]}  Kf7 {[%clk 0:24:24]}
49. g4 {[%clk 0:16:54]}  g6 {[%clk 0:23:53]} 50. Kf2 {[%clk 0:15:41]}  Ke6 {[%clk 0:24:00]} 51. Re2+ {[%clk 0:15:56]}  Kf7 {[%clk 0:22:49]}
52. Re5 {[%clk 0:14:01]}  Rd8 {[%clk 0:22:50]} 53. Ke3 {[%clk 0:12:48]}  Re6 {[%clk 0:22:26]} 54. Rxe6 {[%clk 0:12:51]}  Kxe6 {[%clk 0:22:51]}
55. b6 {[%clk 0:12:52]}  Rb8 {[%clk 0:21:56]} 56. Rb4 {[%clk 0:12:53]}  Kd6 {[%clk 0:21:53]} 57. b7 {[%clk 0:12:15]}  Kc5 {[%clk 0:15:53]}
58. Rb1 {[%clk 0:11:13]}  Kc6 {[%clk 0:15:08]} 59. Kd4 {[%clk 0:10:49]}  Kd6 {[%clk 0:15:26]} 60. f5 {[%clk 0:07:59]}  gxf5 {[%clk 0:15:04]}
61. gxf5 {[%clk 0:08:28]}  Kc6 {[%clk 0:11:26]} 62. f6 {[%clk 0:08:39]}  Kd6 {[%clk 0:11:12]} 63. f7 {[%clk 0:08:47]}  Kc7 {[%clk 0:05:36]}
64. Kxd5 {[%clk 0:08:51]}  h6 {[%clk 0:05:38]} 65. h5 {[%clk 0:08:09]}  Rd8+ {[%clk 0:05:20]} 66. Ke6 {[%clk 0:08:21]}  Rd6+ {[%clk 0:01:19]}
67. Ke5 {[%clk 0:08:33]} 1-0

[Event "2026 European Womens Championship"]
[Site "Batumi, GE"]
[Date "2026.06.05"]
[Round "11"]
[White "Ediberidze, Alexandra"]
[Black "Koghuashvili, Tekla"]
[Result "1-0"]
[Board "77"]
[TimeControl "5400+30"]
[WhiteFideId "13636685"]
[BlackFideId "13621564"]
[WhiteElo "1638"]
[BlackElo "1921"]
[WhiteClock "0:11:34"]
[BlackClock "0:46:29"]
[Variant "Standard"]

1. d4 {[%clk 1:30:59]}  Nf6 {[%clk 1:30:56]} 2. c4 {[%clk 1:31:22]}  e6 {[%clk 1:31:21]} 3. Nc3 {[%clk 1:31:21]}  b6 {[%clk 1:31:45]}
4. Bg5 {[%clk 1:29:47]}  Be7 {[%clk 1:31:01]} 5. Nf3 {[%clk 1:27:37]}  Bb7 {[%clk 1:31:20]} 6. e3 {[%clk 1:27:51]}  d5 {[%clk 1:30:50]}
7. Rc1 {[%clk 1:18:58]}  O-O {[%clk 1:30:42]} 8. cxd5 {[%clk 1:18:57]}  exd5 {[%clk 1:31:05]} 9. Bd3 {[%clk 1:18:45]}  Nbd7 {[%clk 1:31:09]}
10. O-O {[%clk 1:18:55]}  h6 {[%clk 1:30:47]} 11. Bh4 {[%clk 1:18:30]}  Ne4 {[%clk 1:28:05]} 12. Bxe7 {[%clk 1:18:16]}  Qxe7 {[%clk 1:28:18]}
13. Qb3 {[%clk 1:03:53]}  Ndf6 {[%clk 1:28:33]} 14. Bxe4 {[%clk 1:03:42]}  dxe4 {[%clk 1:28:52]} 15. Ne5 {[%clk 1:04:02]}  c5 {[%clk 1:27:41]}
16. Ng6 {[%clk 1:02:38]}  Qd8 {[%clk 1:24:27]} 17. Nxf8 {[%clk 1:01:36]}  cxd4 {[%clk 1:24:48]} 18. Ne6 {[%clk 0:56:19]}  fxe6 {[%clk 1:25:14]}
19. Qxe6+ {[%clk 0:56:44]}  Kh8 {[%clk 1:25:33]} 20. exd4 {[%clk 0:55:44]}  Qxd4 {[%clk 1:24:13]} 21. Rfd1 {[%clk 0:55:06]}  Qb4 {[%clk 1:24:08]}
22. Qb3 {[%clk 0:52:30]}  Qa5 {[%clk 1:13:06]} 23. Qb5 {[%clk 0:51:03]}  Qa6 {[%clk 1:11:09]} 24. Qxa6 {[%clk 0:51:06]}  Bxa6 {[%clk 1:11:36]}
25. Nd5 {[%clk 0:51:07]}  Bd3 {[%clk 1:09:51]} 26. Nf4 {[%clk 0:47:14]}  Bb5 {[%clk 1:09:06]} 27. b3 {[%clk 0:40:41]}  Kh7 {[%clk 1:06:30]}
28. Nd5 {[%clk 0:40:16]}  Rf8 {[%clk 1:06:00]} 29. Nxf6+ {[%clk 0:36:10]}  Rxf6 {[%clk 1:06:23]} 30. Rd4 {[%clk 0:36:18]}  Bc6 {[%clk 1:06:13]}
31. Rc3 {[%clk 0:35:53]}  a5 {[%clk 1:03:53]} 32. g3 {[%clk 0:32:37]}  h5 {[%clk 1:00:58]} 33. Rc1 {[%clk 0:27:58]}  h4 {[%clk 1:00:27]}
34. Rcd1 {[%clk 0:28:06]}  hxg3 {[%clk 0:58:25]} 35. hxg3 {[%clk 0:28:24]}  Rf5 {[%clk 0:58:36]} 36. Rc1 {[%clk 0:27:40]}  Rf6 {[%clk 0:58:51]}
37. Rc3 {[%clk 0:21:39]}  Kh6 {[%clk 0:58:27]} 38. Rc2 {[%clk 0:20:27]}  g6 {[%clk 0:55:59]} 39. Rb2 {[%clk 0:20:17]}  Kg5 {[%clk 0:54:31]}
40. b4 {[%clk 0:20:10]}  axb4 {[%clk 0:54:17]} 41. Rdxb4 {[%clk 0:20:03]}  b5 {[%clk 0:54:36]} 42. Rc2 {[%clk 0:19:16]}  Kg4 {[%clk 0:54:21]}
43. Kg2 {[%clk 0:18:40]}  Kg5 {[%clk 0:52:18]} 44. Rc5+ {[%clk 0:18:38]}  Kh6 {[%clk 0:52:38]} 45. Kg1 {[%clk 0:18:57]}  Rd6 {[%clk 0:52:56]}
46. Rb1 {[%clk 0:18:54]}  Bd7 {[%clk 0:51:22]} 47. Rbc1 {[%clk 0:18:23]}  Rd2 {[%clk 0:50:38]} 48. R1c2 {[%clk 0:18:31]}  Rd4 {[%clk 0:49:54]}
49. a3 {[%clk 0:17:38]}  g5 {[%clk 0:48:09]} 50. Re5 {[%clk 0:17:23]}  Bg4 {[%clk 0:46:45]} 51. Rc1 {[%clk 0:16:55]}  Be2 {[%clk 0:46:34]}
52. Rc6+ {[%clk 0:15:12]}  Kh5 {[%clk 0:46:23]} 53. Rcc5 {[%clk 0:15:08]}  Rd1+ {[%clk 0:46:29]} 54. Kh2 {[%clk 0:15:31]}  Bf3 {[%clk 0:46:48]}
55. Rxg5+ {[%clk 0:15:50]}  Kh6 {[%clk 0:47:07]} 56. g4 {[%clk 0:16:10]}  Rh1+ {[%clk 0:47:25]} 57. Kg3 {[%clk 0:16:36]}  Ra1 {[%clk 0:46:06]}
58. Rxb5 {[%clk 0:13:58]}  Be2 {[%clk 0:46:30]} 59. Ra5 {[%clk 0:13:38]}  Rb1 {[%clk 0:46:43]} 60. Rgc5 {[%clk 0:12:07]}  Rb6 {[%clk 0:46:06]}
61. Rh5+ {[%clk 0:11:35]}  Kg6 {[%clk 0:46:18]} 62. Rag5+ {[%clk 0:11:47]}  Kf7 {[%clk 0:46:20]} 63. Rh7+ {[%clk 0:12:06]}  Kf8 {[%clk 0:46:40]}
64. Rc5 {[%clk 0:12:07]}  Ba6 {[%clk 0:46:56]} 65. Rd5 {[%clk 0:11:17]}  Kg8 {[%clk 0:46:52]} 66. Ra7 {[%clk 0:11:17]}  Bb7 {[%clk 0:46:29]}
67. Rd8+ {[%clk 0:11:34]} 1-0